Cogmind - Beta 12 --- EXPLORER MODE // 2023.03.09 @ 21:49:43 Player: M3-5OS Result: Core destroyed Performance ------------- Evolutions (5) 2500 Regions Visited (10) 2000 Robots Destroyed (203) 1015 Value Destroyed (7108) 7108 Prototype IDs (2) 40 Alien Tech Used (0) 0 Bonus (-45) -45 TOTAL SCORE: 12618 Bonus ------- High Alert Combat Kills 30 Friendly Fire -75 Cogmind --------- Core Integrity 0/1000 Matter 129/300 Energy 375/375 System Corruption 12% Temperature Critical (614) Movement Treading (162) Location -5/Factory Parts ------- > --- POWER (2) -------- Light Fission Core Neutrino Core > --- PROPULSION (6) --- Light Treads Improved Medium Treads Armored Medium Treads Heavy Treads > --- UTILITY (6) ------ High-capacity Storage Unit Visual Processing Unit Advanced Visual Processing Unit Improved Sensor Array Improved Light Armor Plating Improved Medium Armor Plating > --- WEAPON (4) ------- KE Penetrator KE Penetrator KE Penetrator > --- INVENTORY (20) --- Improved Treads Improved Heat Sink Advanced Heat Sink Advanced Heat Sink High-capacity Storage Unit Transmission Jammer Improved Medium Armor Plating Improved System Shield Improved EM Pulse Cannon Long-range Proton Cannon KE Penetrator KE Penetrator KE Penetrator Hypervelocity Coil Gun Heavy Shock Bomb Launcher Smartbomb Launcher Peak State ------------ > --- POWER ------------ Light Fission Core Neutrino Core > --- PROPULSION ------- Light Treads Light Treads Improved Medium Treads Armored Medium Treads Heavy Treads > --- UTILITY ---------- High-capacity Storage Unit Visual Processing Unit Advanced Visual Processing Unit Advanced Signal Interpreter Advanced Terrain Scan Processor Improved System Shield > --- WEAPON ----------- KE Penetrator KE Penetrator KE Penetrator KE Penetrator > --- INVENTORY -------- Improved Treads Improved Heat Sink Advanced Heat Sink Advanced Heat Sink High-capacity Storage Unit Improved Sensor Array Transmission Jammer Improved Light Armor Plating Improved Medium Armor Plating Improved Medium Armor Plating Improved System Shield Improved EM Pulse Cannon Long-range Proton Cannon KE Penetrator KE Penetrator KE Penetrator Hypervelocity Coil Gun Heavy Shock Bomb Launcher Smartbomb Launcher [Rating: 89] Favorites ----------- Power Improved Ion Engine Engine Improved Ion Engine Power Core Fission Core Propulsion Aluminum Leg Treads Improved Treads Leg Aluminum Leg Hover Unit Gravmag System Flight Unit VTOL Module Utility High-capacity Storage Unit Device Advanced Heat Sink Storage High-capacity Storage Unit Processor Signal Interpreter Hackware Improved System Shield Protection Hardened Medium Armor Plating Weapon Enhanced Autogun Energy Gun Heavy Laser Energy Cannon Improved EM Pulse Cannon Ballistic Gun Enhanced Autogun Ballistic Cannon Advanced Assault Cannon Launcher Improved Grenade Launcher Slashing Weapon Power Sword Build | -11 -10 -9 -8 -7 -6 -6 -6 -6 -6 -5 ------- Run | Jun Mat Mat Mat Fac Fac Ext Cet Arc Hub Fac Slots Evolved 11 | . 1 2 2 2 2 . . . . 2 Power 1 | . . . . . 1 . . . . . Propulsion 4 | . . 1 . 2 . . . . . 1 Utility 4 | . 1 1 1 . 1 . . . . . Weapon 2 | . . . 1 . . . . . . 1 Parts Attached 164 | . 3 15 15 42 6 6 36 23 6 12 Power 19 | . 1 1 1 4 3 . 4 4 1 . Engine 9 | . 1 1 1 4 1 . 1 . . . Core 10 | . . . . . 2 . 3 4 1 . Reactor . | . . . . . . . . . . . Propulsion 69 | . 1 5 7 22 . 3 14 9 3 5 Treads 12 | . . . . . . . 1 4 3 4 Leg 47 | . 1 5 7 22 . 3 9 . . . Wheel . | . . . . . . . . . . . Hover 4 | . . . . . . . 1 2 . 1 Flight 6 | . . . . . . . 3 3 . . Utility 25 | . 1 2 3 3 1 . 7 4 1 3 Device 4 | . . . . . . . 2 1 . 1 Storage 4 | . . . 2 1 . . 1 . . . Processor 9 | . 1 2 . 1 1 . 1 3 . . Hackware 1 | . . . . . . . . . 1 . Protection 7 | . . . 1 1 . . 3 . . 2 Artifact . | . . . . . . . . . . . Weapon 51 | . . 7 4 13 2 3 11 6 1 4 Energy Gun 4 | . . . . . . . 2 2 . . Energy Cannon 1 | . . . . . . . . . 1 . Ballistic Gun 30 | . . 5 4 10 1 1 4 1 . 4 Ballistic Cannon 2 | . . . . . . 1 1 . . . Launcher 10 | . . 2 . 3 1 1 3 . . . Special Weapon . | . . . . . . . . . . . Impact Weapon . | . . . . . . . . . . . Slashing Weapon 4 | . . . . . . . 1 3 . . Piercing Weapon . | . . . . . . . . . . . Special Melee Weapon . | . . . . . . . . . . . Unidentified Prototypes 2 | . . 1 1 . . . . . . . Parts Lost 76 | . . . 2 11 1 3 41 13 . 5 Power 11 | . . . . 1 1 . 6 3 . . Propulsion 32 | . . . 1 6 . 2 15 7 . 1 Utility 17 | . . . 1 3 . . 9 1 . 3 Weapon 16 | . . . . 1 . 1 11 2 . 1 Highest Loss Streak 14 | . . . 2 7 1 2 14 13 . 5 To Critical Strikes 5 | . . . . . . . 5 . . . Average Slot Usage (%) 94 | . 100 99 98 99 98 99 76 70 87 91 Engine 5 | . 12 10 8 7 5 . . . . . Core 3 | . . . . . 4 12 7 5 9 11 Treads 2 | . . . . . . . 2 9 20 26 Leg 25 | . 25 30 24 34 31 30 15 1 . . Storage 12 | . 12 10 12 13 12 12 16 6 6 5 Processor 21 | . 25 29 25 20 18 18 7 24 25 21 Protection 2 | . . . 2 . 6 6 4 . . . Ballistic Gun 17 | . 25 19 25 20 18 16 4 5 6 13 Naked Turns . | . . . . . . . . . . . Heaviest Build 87 | 18 20 23 58 71 81 84 84 60 73 87 Greatest Support 167 | 20 20 30 32 72 67 80 87 46 63 167 Greatest Overweight (x) 23 | . . . 2 3 1 1 23 19 3 1 Average Overweight (x) . | . . . . . 1 1 1 3 1 . Largest Inventory Capacity 20 | 10 10 10 20 20 20 20 20 20 20 20 Average Capacity 18 | 10 10 10 19 20 20 20 20 20 20 20 Most Carried 20 | 7 10 10 20 20 20 20 20 14 13 20 Average Carried 16 | 7 9 9 18 19 17 19 12 7 12 17 Final Capacity 20 | 10 10 10 20 20 20 20 20 20 20 20 Final Carried 20 | 7 10 10 20 13 20 20 14 11 13 17 Class Distribution -------------------- 45% | Scavenger-Gunner 19% | Hacker-Gunner 15% | Hacker-Mutant 14% | Scavenger-Mutant Dominant Class ---------------- Hacker-Mutant | -10/Materials Scavenger-Mutant | -9/Materials Hacker-Gunner | -8/Materials Scavenger-Gunner | -7/Factory Scavenger-Gunner | -6/Factory Hacker-Gunner | -6/Extension Hacker-Mutant | -6/Cetus Scavenger-Mutant | -6/Archives Scavenger-Mutant | -6/Hub_04(d) Hacker-Skirmisher | -5/Factory Resources | -11 -10 -9 -8 -7 -6 -6 -6 -6 -6 -5 ----------- Run | Jun Mat Mat Mat Fac Fac Ext Cet Arc Hub Fac Matter Collected 6440 | 212 113 457 1181 1825 386 453 981 444 118 270 Remotely . | . . . . . . . . . . . Salvage Created 8443 | . 278 1212 1525 2698 466 444 732 586 63 439 Parts 433 | . 22 80 92 116 17 23 28 28 4 23 Haulers Intercepted 18 | . 1 5 6 5 . 1 . . . . Recyclers Shooed 4 | . . 1 . 1 . 2 . . . . Parts Field Recycled . | . . . . . . . . . . . Retrieved Matter . | . . . . . . . . . . . Parts Self-Destructed . | . . . . . . . . . . . Prevented . | . . . . . . . . . . . Kills | -11 -10 -9 -8 -7 -6 -6 -6 -6 -6 -5 ------- Run | Jun Mat Mat Mat Fac Fac Ext Cet Arc Hub Fac Combat Hostiles Destroyed 137 | . 6 24 16 40 9 8 21 4 1 8 Melee 9 | . . . . . . . 8 1 . . Guns 105 | . 6 20 16 34 6 4 9 1 1 8 Cannons 2 | . . . . . . 1 1 . . . AOE 18 | . . 4 . 6 2 3 3 . . . Classes Destroyed 16 | . 4 6 1 2 1 2 . . . . Worker 8 | . . 3 3 2 . . . . . . Builder 9 | . . 1 1 5 . . . . . 2 Tunneler 1 | . . 1 . . . . . . . . Hauler 18 | . 1 5 6 5 . 1 . . . . Recycler 9 | . . 2 2 5 . . . . . . Mechanic 1 | . . 1 . . . . . . . . Operator 11 | . . . 1 . . 1 . 8 . 1 Watcher 13 | . 1 2 5 3 1 . 1 . . . Swarmer 28 | . 2 10 . 2 3 . 8 . . 3 Grunt 59 | . 4 6 12 26 2 . 6 . . 3 Brawler 3 | . . . . . 1 . 2 . . . Duelist 4 | . . . . 4 . . . . . . Sentry 23 | . . 8 4 3 . 3 . 4 1 . Hunter 1 | . . . . . . 1 . . . . Programmer 13 | . . . . 5 3 2 1 . . 2 Behemoth 2 | . . . . . . 2 . . . . Cetus Guard 4 | . . . . . . . 4 . . . Best Kill Streak 12 | . 3 12 7 10 3 6 6 4 1 5 Combat Bots Only 6 | . 2 6 5 5 3 6 6 2 1 4 Max Kills in Single Turn 5 | . 1 5 2 3 2 2 2 2 1 2 Gunslinging 1 | . . 1 1 . . . . . . . Exploded 2 | . . 2 . 2 2 2 1 . . . Melee 1 | . . . . . . . 1 1 . . Uniques/NPCs Destroyed . | . . . . . . . . . . . Combat | -11 -10 -9 -8 -7 -6 -6 -6 -6 -6 -5 -------- Run | Jun Mat Mat Mat Fac Fac Ext Cet Arc Hub Fac Damage Taken 12212 | . 76 605 585 2315 370 383 4294 1180 146 2258 Core 2281 | . 24 83 99 249 24 34 481 232 20 1035 Absorbed by Shields 17 | . . . . . . 17 . . . . Redirected to Shielding 102 | . . . 102 . . . . . . . Core Remaining (%) 70 | 100 90 79 82 64 . . . . 6 . Volleys Fired 519 | 3 21 83 77 140 22 28 58 60 5 22 Largest 4 | 2 2 2 3 3 3 3 3 2 2 4 Hottest 170 | 40 40 53 71 75 71 94 109 102 102 170 Shots Fired 1251 | 6 42 160 231 381 66 77 135 69 5 79 Gun 1191 | 6 42 157 231 373 66 67 103 69 4 73 Cannon 24 | . . . . . . 3 14 . 1 6 Launcher 36 | . . 3 . 8 . 7 18 . . . Special . | . . . . . . . . . . . Kinetic 1183 | 6 42 157 231 373 66 70 108 53 4 73 Thermal 25 | . . . . . . . 9 16 . . Explosive 36 | . . 3 . 8 . 7 18 . . . Electromagnetic 7 | . . . . . . . . . 1 6 Robot Hit Streak 45 | 4 15 45 43 45 19 19 31 33 12 17 Robot Miss Streak 2 | 1 2 1 2 2 2 1 1 1 . 1 Penetration Max 1 | . . . . . . . 1 1 . 1 Secondary Targets 23 | . 1 5 3 6 . 1 5 . . 2 Max Gunslinging Chain 1 | . 1 1 1 1 . 1 1 . . 1 Shots Hit Robots 1039 | 5 32 128 188 309 42 56 149 68 3 59 Core Hits 466 | 1 16 63 68 124 33 36 78 24 2 21 Critical Kills 5 | . . . 2 . . . . 2 . 1 Critical Parts Destroyed 7 | . . . . 2 . . 1 1 . 3 Critical Strikes 22 | . . . 2 2 . . 9 5 . 4 Burn 4 | . . . . . . . 3 1 . . Destroy 12 | . . . 2 2 . . 1 3 . 4 Sever 6 | . . . . . . . 5 1 . . Melee Attacks 37 | . . . . . . . 29 8 . . Impact . | . . . . . . . . . . . Slashing 37 | . . . . . . . 29 8 . . Piercing . | . . . . . . . . . . . Sneak Attacks . | . . . . . . . . . . . Combat Hostiles . | . . . . . . . . . . . Follow-up Attacks . | . . . . . . . . . . . Damage Inflicted 22062 | 50 333 2513 2906 6473 1124 1488 3876 1746 123 1430 Guns 16262 | 50 333 1679 2880 5152 783 830 1608 1567 95 1285 Cannons 531 | . . . . . . 47 311 . 28 145 Explosions 4087 | . . 834 . 1314 341 611 987 . . . Melee 1149 | . . . . . . . 970 179 . . Ramming 33 | . . . 26 7 . . . . . . Kinetic 16125 | 50 333 1679 2880 5152 783 877 1723 1268 95 1285 Thermal 495 | . . . . . . . 196 299 . . Explosive 3746 | . . 834 . 1314 . 611 987 . . . Electromagnetic 514 | . . . . . 341 . . . 28 145 Impact . | . . . . . . . . . . . Slashing 1149 | . . . . . . . 970 179 . . Piercing . | . . . . . . . . . . . Highest Corruption 24 | . 1 . . 2 4 5 24 24 24 12 Average Corruption 7 | . 1 . . 1 2 4 14 24 24 4 Corruption Purged . | . . . . . . . . . . . Corruption Blocked 5 | . . . . . 5 . . . . . Effects 175 | . 1 . . 24 14 21 51 48 15 1 Message Errors 42 | . . . . 8 5 11 6 6 6 . Matter Fused 42 | . 1 . . 6 3 3 15 12 2 . Heat Flow Errors 19 | . . . . 2 2 2 6 6 . 1 Energy Discharges 15 | . . . . 1 2 . 3 8 1 . Parts Rejected 2 | . . . . . . . 1 . 1 . Data Loss (minor) 22 | . . . . 4 . 1 7 7 3 . Data Loss (major) 11 | . . . . 1 1 2 4 2 1 . Misfires 5 | . . . . 1 . 1 . 3 . . Alerts 3 | . . . . 1 1 . . 1 . . Misdirections 3 | . . . . . . . 2 1 . . Weapon Failures 11 | . . . . . . 1 7 2 1 . Overload Shots . | . . . . . . . . . . . Overflow Damage 100 | . . 36 . 28 . . 33 . . 3 Projectiles 3 | . . . . . . . . . . 3 Explosions 79 | . . 36 . 28 . . 15 . . . Melee 18 | . . . . . . . 18 . . . Knockbacks . | . . . . . . . . . . . Impact . | . . . . . . . . . . . Kinetic . | . . . . . . . . . . . Secondary . | . . . . . . . . . . . Self-Inflicted Damage 191 | . . 9 . 66 63 . 53 . . . Shots 13 | . . 1 . 3 4 . 5 . . . Rammed . | . . . . . . . . . . . Targets Rammed 5 | . . . 2 3 . . . . . . Kicked 5 | . . . 2 3 . . . . . . Crushed . | . . . . . . . . . . . Highest Temperature 654 | . 41 20 81 227 221 527 352 226 57 654 Average Temperature 102 | . 8 5 18 37 70 135 172 62 32 394 Received Heat Transfer 4425 | . 78 366 495 1272 . 84 1314 387 78 351 Effects 43 | . . . . . . 7 4 . . 32 Shutdowns 17 | . . . . . . 4 2 . . 11 Energy Bleed 5 | . . . . . . 2 2 . . 1 Interference 5 | . . . . . . . . . . 5 Matter Decay 3 | . . . . . . . . . . 3 Short Circuit 1 | . . . . . . . . . . 1 Damage (minor) 5 | . . . . . . 1 . . . 4 Damage (major) 2 | . . . . . . . . . . 2 Damage (core) 5 | . . . . . . . . . . 5 Siege Activations . | . . . . . . . . . . . Robots Corrupted 1 | . . . . . 1 . . . . . Combat Hostiles 1 | . . . . . 1 . . . . . Parts Fried 2 | . . . . . 1 . . . . 1 Impact Corruptions . | . . . . . . . . . . . Robots Melted 2 | . . . . . . . . 2 . . Combat Hostiles 2 | . . . . . . . . 2 . . Parts Melted 7 | . . . . . . . 3 4 . . Heat Transferred 1221 | . . . . . . . 555 666 . . Parts Sabotaged . | . . . . . . . . . . . Parts Stolen . | . . . . . . . . . . . Parts Stripped . | . . . . . . . . . . . Power Chain Reactions 1 | . . . . . 1 . . . . . Missiles Intercepted . | . . . . . . . . . . . Alert | -11 -10 -9 -8 -7 -6 -6 -6 -6 -6 -5 ------- Run | Jun Mat Mat Mat Fac Fac Ext Cet Arc Hub Fac Peak Influence 504 | . 192 504 318 251 111 126 160 50 89 241 Initial 61 | . . 20 61 . 49 36 2 1 . 31 Average 70 | . 81 237 67 61 54 46 71 17 42 56 Maximum Alert Level 2 | . . 2 1 1 . . . . . 1 Low Security (%) 93 | 100 100 51 92 92 100 100 100 100 100 92 Level 1 5 | . . 27 7 7 . . . . . 7 Level 2 1 | . . 20 . . . . . . . . Level 3 . | . . . . . . . . . . . Level 4 . | . . . . . . . . . . . Level 5 . | . . . . . . . . . . . High Security . | . . . . . . . . . . . Max Security . | . . . . . . . . . . . Squads Dispatched 29 | . . 2 1 18 3 2 1 . . 2 Investigation 7 | . . . . 2 1 2 1 . . 1 Extermination 9 | . . . . 6 2 . . . . 1 Reinforcement 8 | . . 2 1 5 . . . . . . Assault . | . . . . . . . . . . . Garrison 5 | . . . . 5 . . . . . . Intercept . | . . . . . . . . . . . Searches Triggered . | . . . . . . . . . . . Construction Impeded 1 | . . . . 1 . . . . . . Haulers Reinforced 2 | . . . . 2 . . . . . . Active Scanning Responses . | . . . . . . . . . . . Cargo Convoy Interrupts 1 | . . . . . 1 . . . . . Stealth | -11 -10 -9 -8 -7 -6 -6 -6 -6 -6 -5 --------- Run | Jun Mat Mat Mat Fac Fac Ext Cet Arc Hub Fac Distress Signals 17 | . 1 7 4 . . 2 2 . 1 . Communications Jammed . | . . . . . . . . . . . Distress Signals . | . . . . . . . . . . . Times Spotted 225 | . 13 31 27 53 12 12 38 23 4 12 Peak Tracking Total 9 | . 3 5 5 4 3 4 9 2 2 8 Tactical Retreats 13 | . 1 . 1 5 . . 4 . 1 1 Traps | -11 -10 -9 -8 -7 -6 -6 -6 -6 -6 -5 ------- Run | Jun Mat Mat Mat Fac Fac Ext Cet Arc Hub Fac Traps Triggered 9 | . 1 . 1 2 1 3 . . . 1 Indirectly . | . . . . . . . . . . . Trap Hack Attempts . | . . . . . . . . . . . Triggered . | . . . . . . . . . . . Disarmed . | . . . . . . . . . . . Reprogrammed . | . . . . . . . . . . . Reused . | . . . . . . . . . . . Traps Extracted . | . . . . . . . . . . . Installed . | . . . . . . . . . . . Triggered 1 | . . . . . 1 . . . . . Machines | -11 -10 -9 -8 -7 -6 -6 -6 -6 -6 -5 ---------- Run | Jun Mat Mat Mat Fac Fac Ext Cet Arc Hub Fac Machines Disabled 19 | . . 2 2 5 5 . . 4 . 1 Max in Single Turn 5 | . . 2 1 1 5 . . 1 . 1 Machines Repaired . | . . . . . . . . . . . Machines Sabotaged . | . . . . . . . . . . . Overloaded Fab Kills . | . . . . . . . . . . . Hacking | -11 -10 -9 -8 -7 -6 -6 -6 -6 -6 -5 --------- Run | Jun Mat Mat Mat Fac Fac Ext Cet Arc Hub Fac Machines Accessed 25 | . 1 1 2 4 4 8 2 . 2 1 Terminals 21 | . 1 1 1 2 3 8 2 . 2 1 Fabricators . | . . . . . . . . . . . Repair Stations . | . . . . . . . . . . . Recycling Units 2 | . . . 1 1 . . . . . . Scanalyzers . | . . . . . . . . . . . Garrison Access 2 | . . . . 1 1 . . . . . Total Hacks 54 | . 1 1 3 10 11 15 6 . 4 3 Successful 27 | . 1 1 2 4 5 8 4 . 1 1 Failed 27 | . . . 1 6 6 7 2 . 3 2 Catastrophic 4 | . . . . 2 . . 2 . . . Database Lockouts . | . . . . . . . . . . . Manual 17 | . . . 2 5 2 4 . . 2 2 Terminals 46 | . 1 1 1 7 8 15 6 . 4 3 Fabricators . | . . . . . . . . . . . Repair Stations . | . . . . . . . . . . . Recycling Units 3 | . . . 2 1 . . . . . . Scanalyzers . | . . . . . . . . . . . Garrison Access 5 | . . . . 2 3 . . . . . Terminal Hacks 25 | . 1 1 1 3 5 8 4 . 1 1 Record 13 | . . 1 . 3 2 2 4 . . 1 Open Door 5 | . . . . . . 5 . . . . Level Access Points 1 | . . . . . 1 . . . . . Branch Access Points 1 | . . . . . . 1 . . . . Transport Status 1 | . 1 . . . . . . . . . Recall Investigation 1 | . . . . . . . . . 1 . Hauler Manifests 2 | . . . 1 . 1 . . . . . Zone Layout 1 | . . . . . 1 . . . . . Fabricator Hacks . | . . . . . . . . . . . Repair Station Hacks . | . . . . . . . . . . . Recycling Unit Hacks . | . . . . . . . . . . . Scanalyzer . | . . . . . . . . . . . Garrison Access Hacks . | . . . . . . . . . . . Unauthorized Hacks 2 | . . . 1 1 . . . . . . Terminals . | . . . . . . . . . . . Fabricators . | . . . . . . . . . . . Repair Stations . | . . . . . . . . . . . Recycling Units 2 | . . . 1 1 . . . . . . Reject 2 | . . . 1 1 . . . . . . Scanalyzers . | . . . . . . . . . . . Garrison Access . | . . . . . . . . . . . Data Cores Recovered 2 | . . . . . . 1 . . . 1 Used 1 | . . . . . . 1 . . . . Hacking Detections 17 | . 1 1 . 3 2 6 2 . 1 1 Full Trace Events 5 | . . . . 2 1 1 1 . . . Feedback Events . | . . . . . . . . . . . Feedback Blocked . | . . . . . . . . . . . Robot Schematics Acquired . | . . . . . . . . . . . Robots Built . | . . . . . . . . . . . Authchips . | . . . . . . . . . . . Time . | . . . . . . . . . . . Total Robot Build Rating . | . . . . . . . . . . . Part Schematics Acquired . | . . . . . . . . . . . Parts Built . | . . . . . . . . . . . Authchips . | . . . . . . . . . . . Time . | . . . . . . . . . . . Total Part Build Rating . | . . . . . . . . . . . Parts Repaired . | . . . . . . . . . . . Time . | . . . . . . . . . . . Parts Recycled . | . . . . . . . . . . . Recycled Matter . | . . . . . . . . . . . Retrieved Matter . | . . . . . . . . . . . Retrieved Components . | . . . . . . . . . . . Parts Scanalyzed . | . . . . . . . . . . . Part Schematics Acquired . | . . . . . . . . . . . Parts Damaged . | . . . . . . . . . . . Bothacking | -11 -10 -9 -8 -7 -6 -6 -6 -6 -6 -5 ------------ Run | Jun Mat Mat Mat Fac Fac Ext Cet Arc Hub Fac Used RIF Installer . | . . . . . . . . . . . Robots Hacked . | . . . . . . . . . . . Non-combat . | . . . . . . . . . . . Combat . | . . . . . . . . . . . Robot Hacks Applied . | . . . . . . . . . . . Relay Couplers Released . | . . . . . . . . . . . Fabnet Peak Effective % . | . . . . . . . . . . . Robots Rewired . | . . . . . . . . . . . Allies Hacked . | . . . . . . . . . . . Hacks Repelled . | . . . . . . . . . . . Allies | -11 -10 -9 -8 -7 -6 -6 -6 -6 -6 -5 -------- Run | Jun Mat Mat Mat Fac Fac Ext Cet Arc Hub Fac Total Allies 4 | . . . . . . 4 . . . . Largest Group 4 | . . . . . . 4 . . . . Highest-Rated Group 246 | . . . . . . 246 . . . . Highest-Rated Ally 159 | . . . . . . 159 . . . . Total Orders . | . . . . . . . . . . . Ally Attacks 14 | . . . . . . 14 . . . . Total Damage 227 | . . . . . . 227 . . . . Kills . | . . . . . . . . . . . Allies Corrupted . | . . . . . . . . . . . Allies Melted . | . . . . . . . . . . . Intel | -11 -10 -9 -8 -7 -6 -6 -6 -6 -6 -5 ------- Run | Jun Mat Mat Mat Fac Fac Ext Cet Arc Hub Fac Robot Analysis Total . | . . . . . . . . . . . Derelict Logs Recovered . | . . . . . . . . . . . Drone Launches . | . . . . . . . . . . . Drone Recoveries . | . . . . . . . . . . . Exploration | -11 -10 -9 -8 -7 -6 -6 -6 -6 -6 -5 ------------- Run | Jun Mat Mat Mat Fac Fac Ext Cet Arc Hub Fac Turns Passed 11873 | 11 672 823 2108 3286 1406 935 1061 887 282 402 Spaces Moved 4592 | 3 468 429 674 1167 660 406 307 212 97 169 Core 19 | . . . . . . . 3 16 . . Treads 344 | . . . . . . . 1 103 71 169 Legs 4127 | 3 468 429 674 1167 660 406 293 27 . . Wheels . | . . . . . . . . . . . Hover 92 | . . . . . . . . 66 26 . Flight 10 | . . . . . . . 10 . . . Fastest Speed 114 | 120 120 120 120 114 192 192 120 120 160 162 Average Speed 185 | 120 120 120 180 187 192 192 246 331 250 167 Slowest Speed 1200 | 120 120 120 265 330 192 192 1200 1000 320 240 Overloaded Moves . | . . . . . . . . . . . Propulsion Burnouts . | . . . . . . . . . . . Robots Hopped . | . . . . . . . . . . . Cave-ins Triggered 2 | . . . . . . . . . . 2 Exploration Rate (%) 43 | 2 90 60 40 34 14 52 75 93 15 6 Regions Visited 10 Branch Regions 4 Pre-discovered Areas . | . . . . . . . . . . . Known Exits Taken 10 | 1 1 1 1 1 1 1 1 1 1 . Unknown Exits Taken . | . . . . . . . . . . . Scrap Searched . | . . . . . . . . . . . Spaces Dug 28 | . . 10 . . . . 17 1 . . Terrain Destroyed 151 | . . 17 . 9 . 2 104 5 . 14 Melee 1 | . . . . . . . . 1 . . Projectile 18 | . . . . . . 1 1 4 . 12 AOE 130 | . . 17 . 9 . 1 103 . . . Terrain Rammed . | . . . . . . . . . . . Walls Destroyed . | . . . . . . . . . . . Machines Disabled . | . . . . . . . . . . . Actions | -11 -10 -9 -8 -7 -6 -6 -6 -6 -6 -5 --------- Run | Jun Mat Mat Mat Fac Fac Ext Cet Arc Hub Fac Total 7004 | 5 545 588 1406 2060 759 505 459 312 129 236 Wait 1502 | . 34 43 606 668 58 49 10 . 18 16 Move 4582 | 2 467 428 673 1166 659 405 306 211 96 169 Hop . | . . . . . . . . . . . Pick Up 102 | . 11 6 18 14 12 4 18 8 2 9 Fast Attach 43 | . . 2 4 7 . 1 9 9 5 6 Attach 64 | . 1 2 2 12 4 2 24 13 . 4 Detach 3 | . . . . . . . . 2 . 1 Swap 57 | . 2 11 9 23 2 3 3 1 1 2 Drop 79 | . 9 13 15 27 2 3 1 . 2 7 Fire 519 | 3 21 83 77 140 22 28 58 60 5 22 Melee 37 | . . . . . . . 29 8 . . Ram 1 | . . . . . . . 1 . . . Kick 5 | . . . 2 3 . . . . . . Crush . | . . . . . . . . . . . Escape Stasis 10 | . . . . . . 10 . . . . Rewire . | . . . . . . . . . . . Trap . | . . . . . . . . . . . Miscellaneous . | . . . . . . . . . . . Route ------- -11/Junkyard -10/Materials (discovered 5 exits: *Mat x3 / *Min x2) -9/Materials (discovered 2 exits: *Mat / *Min) -8/Materials -7/Factory -6/Factory (discovered 5 exits: Fac x4 / *Ext) -6/Extension (discovered 3 exits: *Fac x2 / *Cet) -6/Cetus (discovered 2 exits: *Fac / *Arc) -6/Archives (discovered 3 exits: *Fac / *Hub x2) -6/Hub_04(d) -5/Factory History --------- Turn | Location | Event 10 | -11/Junkyard | Identified exit to Materials 10 | -11/Junkyard | Discovered exit to Materials (range 1) 12 | -11/Junkyard | Entered Materials 12 | -10/Materials | Evolved 1 slot: Utility x1 13 | -10/Materials | Identified exit to Mines 13 | -10/Materials | Discovered exit to Mines (range 16) 99 | -10/Materials | Identified exit to Materials 99 | -10/Materials | Discovered exit to Materials (range 12) 311 | -10/Materials | Build established: Hacker-Mutant 328 | -10/Materials | Discovered exit to Mines (range 5) 409 | -10/Materials | Discovered exit to Materials (range 5) 679 | -10/Materials | Discovered exit to Materials (range 5) 684 | -10/Materials | Entered another Materials area 684 | -9/Materials | Evolved 2 slots: Propulsion x1, Utility x1 1134 | -9/Materials | Identified exit to Mines 1134 | -9/Materials | Discovered exit to Mines (range 16) 1261 | -9/Materials | Build established: Scavenger-Mutant 1467 | -9/Materials | Identified exit to Materials 1467 | -9/Materials | Discovered exit to Materials (range 5) 1507 | -9/Materials | Entered another Materials area 1507 | -8/Materials | Evolved 2 slots: Utility x1, Weapon x1 1806 | -8/Materials | Build established: Scavenger-Gunner 2439 | -8/Materials | Identified exit to Factory 2439 | -8/Materials | Discovered exit to Factory (range 14) 2493 | -8/Materials | Build established: Hacker-Gunner 3615 | -8/Materials | Entered Factory 3615 | -7/Factory | Evolved 2 slots: Propulsion x2 3907 | -7/Factory | Build established: Scavenger-Gunner 5827 | -7/Factory | Garrison activated, responded to threat 6426 | -7/Factory | Identified exit to Factory 6426 | -7/Factory | Discovered exit to Factory (range 7) 6776 | -7/Factory | Garrison activated, responded to threat 6856 | -7/Factory | Lost 7 parts (1p5n1u) 6901 | -7/Factory | Entered another Factory area 6901 | -6/Factory | Evolved 2 slots: Power x1, Utility x1 7246 | -6/Factory | Identified exit to Factory 8035 | -6/Factory | Cargo convoy interrupted 8269 | -6/Factory | Identified exit to Extension 8269 | -6/Factory | Discovered exit to Extension (range 15) 8307 | -6/Factory | Entered Extension 8614 | -6/Extension | Identified exit to Cetus 8717 | -6/Extension | Build established: Hacker-Gunner 8786 | -6/Extension | Rescued a captive Derelict 8828 | -6/Extension | Rescued a captive Derelict 8840 | -6/Extension | Rescued A7 8886 | -6/Extension | Rescued a captive Derelict 8898 | -6/Extension | Spotted B-75 Beast 8917 | -6/Extension | Spotted B-75 Beast 8932 | -6/Extension | Destroyed B-75 Beast 8941 | -6/Extension | Destroyed B-75 Beast 8967 | -6/Extension | Extracted ID and sensor layout for unrecognized location from A7's data core 9013 | -6/Extension | Discovered exit to Factory (range 3) 9215 | -6/Extension | Discovered exit to Factory (range 15) 9242 | -6/Extension | Entered Cetus 9267 | -6/Cetus | Spotted Cetus Guard 9271 | -6/Cetus | Spotted Cetus Guard 9275 | -6/Cetus | Spotted Cetus Guard 9290 | -6/Cetus | Spotted Cetus Guard 9314 | -6/Cetus | Destroyed Cetus Guard 9335 | -6/Cetus | Destroyed Cetus Guard 9359 | -6/Cetus | Destroyed Cetus Guard 9364 | -6/Cetus | Lost 14 parts (2p6n2u4w) 9384 | -6/Cetus | Destroyed Cetus Guard 9454 | -6/Cetus | Discovered exit to Factory (range 15) 9561 | -6/Cetus | Build established: Hacker-Mutant 9576 | -6/Cetus | System corruption reached 10% 9647 | -6/Cetus | Lost 6 parts (1p2n1u2w) 9849 | -6/Cetus | Lost 4 parts (2n1u1w) 10033 | -6/Cetus | Core integrity fell below 50% 10101 | -6/Cetus | Lost 4 parts (1p2n1u) 10207 | -6/Cetus | Identified exit to Archives 10207 | -6/Cetus | Discovered exit to Archives (range 16) 10242 | -6/Cetus | Spotted Cetus Guard 10243 | -6/Cetus | Spotted Cetus Guard 10246 | -6/Cetus | Spotted Cetus Guard 10248 | -6/Cetus | Spotted Cetus Guard 10303 | -6/Cetus | Entered Archives 10330 | -6/Archives | Lost 10 parts (2p2n2u4w) 10365 | -6/Archives | Unable to access archive contents 10419 | -6/Archives | Identified exit to Hub_04(d) 10419 | -6/Archives | Discovered exit to Hub_04(d) (range 17) 10423 | -6/Archives | Core integrity fell below 20% 10498 | -6/Archives | Lost 13 parts (3p7n1u2w) 10547 | -6/Archives | Discovered exit to Hub_04(d) (range 19) 10643 | -6/Archives | Discovered exit to Factory (range 20) 10671 | -6/Archives | Unable to access archive contents 10791 | -6/Archives | Build established: Scavenger-Mutant 11116 | -6/Archives | Unable to access archive contents 11190 | -6/Archives | Entered Hub_04(d) 11365 | -6/Hub_04(d) | Discovered exit to Factory (range 14) 11472 | -6/Hub_04(d) | Entered Factory 11472 | -5/Factory | Evolved 2 slots: Propulsion x1, Weapon x1 11840 | -5/Factory | Build established: Hacker-Skirmisher 11848 | -5/Factory | Core integrity fell below 50% 11858 | -5/Factory | Crushed by falling debris 11868 | -5/Factory | Crushed by falling debris 11868 | -5/Factory | Core integrity fell below 20% 11868 | -5/Factory | System corruption reached 10% 11875 | -5/Factory | Core destroyed Last Messages --------------- 11868_ Crushed by falling debris. 11868_ Imp. System Shield destroyed. 11868_ System corrupted by crushing effect (+1). 11868_ Broken Adv. Signal Interpreter destroyed. 11868_ System corrupted by crushing effect (+1). 11868_ KE Penetrator destroyed. 11868_ System corrupted by crushing effect (+2). 11868_ Adv. Terrain Scan Processor destroyed. 11868_ System corrupted by crushing effect (+3). 11868_ Imp. Remote Datajack crushed. 11869_ System corrupted: Heat flow error (+254). 11871_ Power failure, Neutrino Core shutdown. 11871_ Acquired 61 matter. 11872_ Power failure, Lgt. Fission Core shutdown. 11872_ Slug penetrates G-50 Soldier. 11872_ G-50 Soldier destroyed. 11872_ Slug penetrates Wall. 11873_ Overheating: Imp. Light Armor Plating damaged (-64). 11873_ Acquired 68 matter. 11875_ Overheating: Core damaged (-200). Map ----- +----------------------------------------------------+ | ?????????????????????????????????????????????????? | | ?????????????????????????????????????????????????? | | ?????????????????????????????????????????????????? | | ?????????????????????????????????????????????????? | | ?????????????????????????????????????????????????? | | ?????????????????????????????????????????????????? | | ?????????????????????????????????????????????????? | | ?????????????????????????????????????????????????? | | ???????????????????????????????????????????#?????? | | ?????????????????????????????????????????? +?????? | | ????????????????????????????????????????? #?????? | | ???????????????????????????????????????? #?????? | | ??????????????????????????##+########### ##????? | | ?????????????????????????? ?????? | | ??????????????????????????? ?????? | | ??????????????????????????? "" ???????? | | ?????????? ??????????????? "" ????????? | | ?????????? ??????????????? "T ??????????? | | ?????????? #??????????????# "" #???????????? | | ?????????# #??????###???### " #???????????? | | ?????????# ########;;#### # #???????????? | | ?????????# # % #** #???????????? | | ?????????# # ] [###%!! #???????????? | | ?????????# # =!=%=%*= +???????????? | | ?????????# # *!%##%## #???????????? | | ?????????# # @##%[=# #????????? ? | | ?????????# # !##!!!# ######### ? | | #????????# # ##%! # ?? | | #????????# # ##* # ???? | | #????????# # ## [#""? """" ???? | | ########## # ##[ #"" ? """" ???? | | # # # ## #"T """" ???? | | # """ # # ######"" """" ???? | | # """ # #######+###########"" """" ?? ? | | # """ # #???#? """" | | # # ##### / """" | | # """ + [ | | # """ ######### [ """" | | # """ #??###### [ """" | | # #?#"""""# ###+############ """" ?? | | #####+######""T""# #? ??????????? """" ???? | | #? ???????????? """" ???? | | #?"""???????????? """"????? | | """" #?""" ????????????""""????? | | ^""F" #?""" ????????????? ?????? | | ^ #? "" ????????????? ??????? | | #####+##### #? "" ???????????????????? | | %# # ^ #? ?? ???????????????????? | | # """ # #?????#???????????????????? | | # """ # ?????????????????????????? | +----------------------------------------------------+ Best States ------------- Heat Dissipation 56 Coolant Potential 65 Energy Generation 32 Energy Capacity 520 Matter Stores 550 Matter Capacity 750 Sight Range 20 Robot Scan Range 15 Terrain Scan Density 210 Armor Coverage 300 Resistance: KI 35 Resistance: TH 35 Resistance: EX 35 Resistance: EM 35 Resistance: I 35 Resistance: S 35 Resistance: P 35 Weapon Shielding 66 Evasion (%) 55 Targeting Accuracy 8 Recoil Reduction 6 Offensive Hacking 20 Defensive Hacking 12 Item Schematics ----------------- None Robot Schematics ------------------ None Fabricated ------------ Nothing Alien Tech Used ----------------- None Achievements -------------- Prison Break Challenges ------------ None Game ------ Seed GuidanceSensorBattery Manual? 0 Play Time 01:19:07 Cumulative 39.1 hours Start 2023.03.09 @ 19:32:25 End 2023.03.09 @ 21:49:43 Sessions 3 Manual Loads 0 Difficulty Explorer Special Mode None Game No. 28 Rogue 2 Adventurer 7 Explorer 19 Win Type - Total 1 Types 1/0/0/0/0/0/0/0/0 Lore% 30 Gallery% 35 Achievement% 31 Wizard Run 0 Options --------- ASCII 0 Keyboard 0 Movement Mouse Keybinds 0 Fullscreen 1 Font 18/X11 Map View 112x50 Tactical HUD 1 Map Filters NONE Filters NONE Steam 1 RUN: c604bbaf-8fe0-4798-97c9-4d33704c5d38